bitfinex/quotes_SOLUSD_20230101
["timestamp","ask_amount","ask_price","bid_price","bid_amount"]
[1672558016273,40.0,9.7425,9.7352,1497.72989589]
[1672558016466,40.0,9.7423,9.7352,1497.72989589]
[1672558016922,77.07,9.7424,9.7352,1497.72989589]
[1672558017098,40.0,9.7423,9.7352,1497.72989589]
[1672558017516,40.0,9.7425,9.7352,1497.72989589]
[1672558017852,53.50232056,9.7425,9.7352,1497.72989589]
[1672558018165,40.0,9.7423,9.7352,1497.72989589]
[1672558018376,40.0,9.7421,9.7352,1497.72989589]
[1672558018774,13.50232056,9.742,9.7352,1497.72989589]
[1672558021308,77.07,9.7429,9.7353,40.0]
[1672558021631,77.05,9.7455,9.7353,347.9]
[1672558021828,20.0,9.7452,9.7355,40.0]
[1672558022034,40.0,9.7451,9.7355,40.0]
[1672558022239,20.0,9.745,9.7357,40.0]
[1672558022451,52.14968426,9.7451,9.7357,347.9]
[1672558022665,40.0,9.7449,9.7359,40.0]
[1672558022873,20.0,9.7448,9.7359,40.0]
[1672558023096,20.0,9.7448,9.7361,40.0]
[1672558023304,20.0,9.7448,9.7363,40.0]
[1672558023505,40.0,9.7446,9.7362,1497.57606484]
[1672558023715,20.0,9.7445,9.7362,1497.57606484]
[1672558024255,40.0,9.7444,9.7362,1497.57606484]
[1672558024477,20.0,9.7443,9.7363,40.0]
[1672558024693,40.0,9.7442,9.7362,1497.57606484]
[1672558025008,20.0,9.7441,9.7363,40.0]
[1672558025425,40.0,9.7448,9.7362,1497.57606484]
[1672558025645,20.0,9.7447,9.7363,40.0]
[1672558025954,20.0,9.7447,9.7363,64.9758]
[1672558026165,20.0,9.7449,9.7363,64.9758]
[1672558026392,20.0,9.745,9.7365,40.0]
[1672558026568,20.0,9.7458,9.7368,40.0]
[1672558027320,20.0,9.7458,9.737,40.0]
[1672558027639,20.0,9.7458,9.737,347.9]
[1672558027640,40.0,9.7457,9.737,347.9]
[1672558027832,20.0,9.7456,9.737,416.8528]
[1672558028038,20.0,9.7458,9.7371,40.0]
[1672558028466,20.0,9.7458,9.7373,40.0]
[1672558029313,20.0,9.7458,9.7376,40.0]
[1672558029522,20.0,9.7458,9.7377,307.9]
[1672558029730,20.0,9.7458,9.7378,40.0]
[1672558030481,20.0,9.7458,9.7378,347.9]
[1672558030785,20.0,9.7468,9.7378,347.9]
[1672558031193,33.50232056,9.7468,9.7378,347.9]
[1672558031533,33.50232056,9.7468,9.7378,40.0]
[1672558032466,20.0,9.7468,9.738,347.9]
[1672558032665,20.0,9.7468,9.7383,40.0]
[1672558033003,20.0,9.7468,9.7386,40.0]
[1672558034041,20.0,9.7468,9.7388,347.9]
[1672558034371,20.0,9.7468,9.7391,40.0]
[1672558034584,20.0,9.7468,9.7393,307.9]
[1672558034769,20.0,9.7487,9.7396,40.0]
[1672558034979,20.0,9.7487,9.7399,40.0]
[1672558038261,20.0,9.7487,9.7402,40.0]
[1672558039436,20.0,9.7499,9.7402,40.0]
[1672558039625,20.0,9.75,9.7402,40.0]
[1672558040591,40.0,9.7499,9.7402,40.0]
[1672558040790,20.0,9.7498,9.7402,40.0]
[1672558041414,40.0,9.7497,9.7396,40.0]
[1672558041624,40.0,9.7495,9.7396,40.0]
[1672558041941,20.0,9.7494,9.7396,40.0]
[1672558043228,20.0,9.7494,9.7389,40.0]
[1672558043427,40.0,9.7493,9.7389,40.0]
[1672558043745,40.0,9.7491,9.7389,40.0]
[1672558043931,20.0,9.749,9.7388,307.9]
[1672558044138,20.0,9.749,9.7389,40.0]
[1672558044351,20.0,9.749,9.7387,307.9]
[1672558044582,40.0,9.7489,9.7388,40.0]
[1672558044779,20.0,9.7488,9.7388,40.0]
[1672558046457,40.0,9.7487,9.7388,40.0]
[1672558046785,20.0,9.7486,9.7388,40.0]
[1672558047002,20.0,9.7488,9.7388,40.0]
[1672558047214,40.0,9.7488,9.7378,307.9]
[1672558047419,40.0,9.7486,9.7378,307.9]
[1672558047628,77.02,9.7485,9.738,307.9]
[1672558047843,40.0,9.7483,9.738,307.9]
[1672558048054,40.0,9.7481,9.738,307.9]
[1672558048261,97.03,9.748,9.738,307.9]
[1672558048484,40.0,9.7479,9.738,307.9]
[1672558048804,40.0,9.7477,9.7371,372.1428]
[1672558049118,40.0,9.7475,9.7372,23.601]
[1672558049327,40.0,9.7473,9.7373,40.0]
[1672558049637,40.0,9.7471,9.7375,40.0]
[1672558049854,40.0,9.7469,9.7375,40.0]
[1672558050044,40.0,9.7469,9.7376,23.1886]
[1672558050045,40.0,9.7467,9.7376,23.1886]
[1672558050464,20.0,9.7466,9.7376,23.1886]
[1672558050686,20.0,9.7466,9.7377,23.1886]
[1672558050908,40.0,9.7465,9.7377,23.1886]
[1672558051328,40.0,9.7463,9.7377,23.1886]
[1672558051642,20.0,9.7462,9.7377,23.1886]
[1672558054147,20.0,9.7462,9.7378,23.2761]
[1672558055107,40.0,9.7462,9.7378,23.2761]
[1672558055423,20.0,9.7461,9.7378,23.2761]
[1672558056350,20.0,9.7461,9.7379,23.3665]
[1672558057412,40.0,9.746,9.7379,23.3665]
[1672558057632,20.0,9.7459,9.7379,23.3665]
[1672558060353,40.0,9.7457,9.7379,23.3665]
[1672558060767,40.0,9.7455,9.738,23.4389]
[1672558060974,20.0,9.7454,9.738,23.4389]
[1672558062250,20.0,9.7455,9.738,23.4389]
[1672558062462,40.0,9.7454,9.738,23.4389]
[1672558062878,20.0,9.7453,9.738,23.4389]
[1672558063500,20.0,9.7455,9.738,23.4389]
[1672558064031,20.0,9.7455,9.729,77.18]
[1672558064032,182.12632106,9.7454,9.729,77.18]
[1672558064249,355.31517824,9.7454,9.7282,77.18]
[1672558064458,173.96352721,9.7453,9.7269,77.19]
[1672558064671,40.0,9.7451,9.7271,40.0]
[1672558064984,40.0,9.7449,9.7273,347.9]
[1672558065185,97.05,9.7448,9.7275,307.9]
[1672558065395,40.0,9.7447,9.7282,40.0]
[1672558065604,40.0,9.7445,9.7282,40.0]
[1672558065813,97.05,9.7444,9.7282,40.0]
[1672558066141,40.0,9.7443,9.7282,40.0]
[1672558066338,40.0,9.7441,9.7282,40.0]
[1672558066548,40.0,9.7439,9.7285,40.0]
[1672558066760,97.06,9.7438,9.7285,40.0]
[1672558066982,40.0,9.7437,9.7285,40.0]
[1672558067296,40.0,9.7435,9.7285,40.0]
[1672558067508,97.06,9.7434,9.7285,40.0]
[1672558067706,40.0,9.7433,9.7285,40.0]
[1672558068038,40.0,9.7431,9.7285,40.0]
[1672558068251,97.07,9.743,9.7285,40.0]
[1672558068439,40.0,9.7429,9.7285,40.0]
[1672558068649,40.0,9.7427,9.7285,40.0]
[1672558068869,40.0,9.7425,9.7285,40.0]
[1672558069191,40.0,9.7423,9.7285,40.0]
[1672558069390,264.0,9.742,9.7285,40.0]
[1672558069607,137.07,9.7419,9.7285,40.0]
[1672558069804,128.08428513,9.7419,9.7286,20.0]
[1672558070022,13.49204367,9.7419,9.7288,40.0]
[1672558070348,13.49204367,9.7419,9.7287,324.9]
[1672558070349,13.49204367,9.7461,9.7291,40.0]
[1672558070559,62.07429197,9.7457,9.7294,40.0]
[1672558070870,62.07429197,9.7457,9.7292,1525.73629967]
[1672558070871,40.0,9.7455,9.7297,40.0]
[1672558071083,77.05,9.7454,9.73,40.0]
[1672558071398,40.0,9.7452,9.7302,40.0]
[1672558071601,97.05,9.7451,9.7304,307.9]
[1672558071828,40.0,9.745,9.7306,307.9]
[1672558072135,40.0,9.7448,9.7309,40.0]
[1672558072345,40.0,9.7446,9.7312,40.0]
[1672558072553,40.0,9.7446,9.7301,23.9516]
[1672558072554,74.560765,9.7418,9.7313,1428.56629967]
[1672558072755,40.0,9.7406,9.7293,1428.56629967]
[1672558072965,40.0,9.7404,9.7293,1428.56629967]
[1672558073170,77.09,9.7403,9.7293,1428.56629967]
[1672558073492,60.0,9.7402,9.7293,1428.56629967]
[1672558073704,77.09,9.7401,9.7293,1428.56629967]
[1672558073920,60.0,9.74,9.7293,1428.56629967]
[1672558074128,40.0,9.7398,9.7293,1736.46629967]
[1672558074338,40.0,9.7396,9.7294,1423.33629967]
[1672558074549,97.09,9.7395,9.7294,1423.33629967]
[1672558074745,40.0,9.7394,9.7294,1423.33629967]
[1672558074959,40.0,9.7392,9.7294,1423.33629967]
[1672558075166,97.1,9.7391,9.7294,1423.33629967]
[1672558075481,40.0,9.739,9.7294,1423.33629967]
[1672558075806,40.0,9.7388,9.7294,1423.33629967]
[1672558076016,97.1,9.7387,9.7294,1423.33629967]
[1672558076333,40.0,9.7386,9.7294,1423.33629967]
[1672558076544,97.1,9.7385,9.7294,1423.33629967]
[1672558076751,40.0,9.7384,9.7294,1423.33629967]
[1672558076944,40.0,9.7382,9.7294,1423.33629967]
[1672558077156,97.1,9.7381,9.7294,1423.33629967]
[1672558077369,40.0,9.738,9.7294,1423.33629967]
[1672558077591,40.0,9.7378,9.7251,185.7328]
[1672558077787,40.0,9.7376,9.7253,475.6128]
[1672558077992,97.11,9.7375,9.7254,40.0]
[1672558078206,40.0,9.7374,9.7254,40.0]
[1672558078427,40.0,9.7372,9.7256,347.9]
[1672558078633,40.0,9.737,9.7257,40.0]
[1672558078846,97.11,9.7369,9.7257,40.0]
[1672558079058,40.0,9.7368,9.7259,40.0]
[1672558079262,40.0,9.7366,9.7259,40.0]
[1672558079478,40.0,9.7364,9.7258,159.8123]
[1672558079680,40.0,9.7362,9.726,307.9]
[1672558080018,40.0,9.736,9.7261,40.0]
[1672558080205,97.12,9.7359,9.7267,159.8123]
[1672558080417,40.0,9.7358,9.7267,159.8123]
[1672558080627,40.0,9.7356,9.7268,307.9]
[1672558080842,40.0,9.7354,9.7268,421.3543]
[1672558081057,97.13,9.7353,9.7268,421.3543]
[1672558081275,40.0,9.7352,9.7268,421.3543]
[1672558081483,40.0,9.735,9.7269,40.0]
[1672558081686,20.0,9.7349,9.7269,40.0]
[1672558081896,74.560765,9.7452,9.7269,40.0]
[1672558081897,74.560765,9.7501,9.7283,307.9]
[1672558082215,74.560765,9.7501,9.7282,60.0]
[1672558082216,60.23375197,9.7429,9.7286,40.0]
[1672558082426,40.0,9.7427,9.7288,307.9]
[1672558082646,97.07,9.7426,9.7289,40.0]
[1672558082858,40.0,9.7425,9.7289,40.0]
[1672558083056,40.0,9.7423,9.7289,40.0]
[1672558083261,40.0,9.7421,9.7289,40.0]
[1672558083473,40.0,9.7419,9.7289,40.0]
[1672558083803,40.0,9.7417,9.7289,40.0]
[1672558084007,97.08,9.7416,9.7289,40.0]
[1672558084221,40.0,9.7415,9.7289,40.0]
[1672558084434,40.0,9.7413,9.7289,40.0]
[1672558084647,40.0,9.7411,9.7289,40.0]
[1672558084849,97.08,9.741,9.7289,40.0]
[1672558085058,40.0,9.7409,9.7289,40.0]
[1672558085272,40.0,9.7407,9.7289,40.0]
[1672558085588,40.0,9.7405,9.7289,40.0]
[1672558085803,97.09,9.7404,9.7289,40.0]
[1672558086009,40.0,9.7403,9.7285,307.9]
[1672558086226,40.0,9.7403,9.7272,307.9]
[1672558086227,40.0,9.7401,9.7272,307.9]
[1672558086433,40.0,9.7399,9.7272,418.9445]
[1672558086626,97.09,9.7398,9.7272,418.9445]
[1672558086956,40.0,9.7397,9.7273,40.0]
[1672558087170,40.0,9.7395,9.7273,40.0]
[1672558087373,40.0,9.7395,9.7272,418.9445]
[1672558087374,97.09,9.7394,9.7272,418.9445]
[1672558087592,40.0,9.7393,9.7273,40.0]
[1672558087790,40.0,9.7391,9.7273,40.0]
[1672558088008,40.0,9.7389,9.7273,40.0]
[1672558088243,97.1,9.7388,9.7273,40.0]
[1672558088416,97.1,9.7388,9.7275,40.0]
[1672558088417,40.0,9.7387,9.7275,40.0]
[1672558088627,40.0,9.7385,9.7275,40.0]
[1672558088851,40.0,9.7383,9.7275,40.0]
[1672558089054,97.1,9.7382,9.7275,40.0]
[1672558089367,40.0,9.7381,9.7275,40.0]
[1672558089578,40.0,9.7379,9.7275,40.0]
[1672558089906,40.0,9.7377,9.7275,40.0]
[1672558090104,40.0,9.7375,9.7275,40.0]
[1672558090311,40.0,9.7373,9.7275,40.0]
[1672558090530,97.11,9.7372,9.7275,40.0]
[1672558090734,40.0,9.7371,9.7278,40.0]
[1672558090939,40.0,9.7371,9.7277,307.9]
[1672558090940,40.0,9.7369,9.7277,307.9]
[1672558091150,77.11,9.7368,9.7276,118.4054]
[1672558091361,20.0,9.7367,9.7282,40.0]
[1672558091567,77.12,9.7366,9.7282,40.0]
[1672558091782,20.0,9.7365,9.7282,40.0]
[1672558092214,60.23375197,9.7399,9.7284,307.9]
[1672558092411,40.0,9.748,9.7285,40.0]
[1672558092626,166.045,9.7481,9.7286,385.08]
[1672558092837,166.045,9.748,9.7288,307.9]
[1672558093047,77.03,9.7479,9.729,307.9]
[1672558093247,77.04,9.7459,9.7292,307.9]
[1672558093463,196.7476,9.7459,9.7294,307.9]
[1672558093677,20.0,9.7458,9.7297,40.0]
[1672558094003,20.0,9.7458,9.73,40.0]
[1672558094215,77.04,9.7457,9.7302,307.9]
[1672558094407,20.0,9.7456,9.7304,307.9]
[1672558094623,77.05,9.7455,9.7307,40.0]
[1672558094844,20.0,9.7454,9.7309,307.9]
[1672558095047,20.0,9.7454,9.7312,40.0]
[1672558095259,20.0,9.7454,9.7315,40.0]
[1672558095466,20.0,9.7478,9.7317,307.9]
[1672558095675,77.03,9.7477,9.732,40.0]
[1672558095876,20.0,9.7476,9.7322,307.9]
[1672558096086,77.03,9.7475,9.7324,347.9]
[1672558096302,77.03,9.7475,9.7326,347.9]
[1672558096303,20.0,9.7474,9.7326,347.9]
[1672558096519,77.03,9.7473,9.7328,307.9]
[1672558096834,77.03,9.7473,9.7326,40.0]
[1672558096835,20.0,9.7472,9.7331,40.0]
[1672558097052,77.03,9.7471,9.7333,307.9]
[1672558097277,20.0,9.747,9.7336,40.0]
[1672558097462,77.03,9.7469,9.7339,40.0]
[1672558097675,20.0,9.7468,9.7341,307.9]
[1672558097883,20.0,9.7468,9.7343,307.9]
[1672558098098,20.0,9.7468,9.7342,694.56491872]
[1672558098099,20.0,9.7468,9.7345,307.9]
[1672558098314,77.04,9.7467,9.7348,40.0]
[1672558098530,20.0,9.7466,9.735,307.9]
[1672558098840,20.0,9.7466,9.7352,307.9]
[1672558099055,77.03,9.7479,9.7354,307.9]
[1672558099056,20.0,9.7478,9.7354,307.9]
[1672558099258,77.03,9.7477,9.7356,347.9]
[1672558099459,20.0,9.7476,9.7358,307.9]
[1672558099673,77.03,9.7475,9.736,307.9]
[1672558099884,20.0,9.7474,9.7363,40.0]
[1672558100088,77.03,9.7473,9.7363,40.0]
[1672558100297,20.0,9.7472,9.7363,40.0]
[1672558100518,77.03,9.7471,9.7366,40.0]
[1672558100733,20.0,9.747,9.7366,40.0]
[1672558100937,77.03,9.7469,9.7366,40.0]
[1672558101155,20.0,9.7468,9.7369,40.0]
[1672558101580,77.04,9.7467,9.7368,307.9]
[1672558101892,77.04,9.7467,9.7369,165.6898]
[1672558101893,20.0,9.7466,9.7369,165.6898]
[1672558102104,77.04,9.7465,9.737,117.1455]
[1672558102313,60.0,9.7464,9.737,117.1455]
[1672558102505,77.04,9.7463,9.737,117.1455]
[1672558102710,20.0,9.7462,9.737,117.1455]
[1672558103049,47.59035938,9.7351,9.7201,77.25]
[1672558103259,40.0,9.7349,9.7267,117.1455]
[1672558103446,40.0,9.7347,9.7267,117.1455]
[1672558103786,40.0,9.7345,9.7267,117.1455]
[1672558103983,20.0,9.7344,9.7267,117.1455]
[1672558104190,88.98838847,9.7344,9.7267,117.1455]
[1672558104406,88.98838847,9.7344,9.7268,307.9]
[1672558104611,68.98838847,9.7343,9.7269,40.0]
[1672558105035,20.0,9.7342,9.7269,40.0]
[1672558105355,20.0,9.7342,9.7267,117.1455]
[1672558105668,68.98838847,9.7341,9.7267,117.1455]
[1672558105874,40.0,9.7339,9.7267,117.1455]
[1672558106094,97.14,9.7338,9.7268,466.82461872]
[1672558106283,40.0,9.7337,9.7268,466.82461872]
[1672558106492,20.0,9.7336,9.7268,466.82461872]
[1672558106930,20.0,9.7338,9.7269,40.0]
[1672558107242,40.0,9.7337,9.7268,466.82461872]
[1672558107467,20.0,9.7336,9.7268,466.82461872]
[1672558108391,68.98838847,9.7341,9.7269,307.9]
[1672558108617,68.98838847,9.7341,9.7282,455.30461872]
[1672558109015,40.0,9.7339,9.7267,117.1455]
[1672558109248,77.14,9.7338,9.7267,117.1455]
[1672558109442,40.0,9.7337,9.7267,117.1455]
[1672558109651,40.0,9.7335,9.7267,117.1455]
[1672558109859,77.14,9.7334,9.7267,117.1455]
[1672558110073,40.0,9.7333,9.7267,117.1455]
[1672558110397,40.0,9.7331,9.7267,117.1455]
[1672558110611,40.0,9.7329,9.7267,117.1455]
[1672558110804,40.0,9.7327,9.7267,117.1455]
[1672558111018,77.15,9.7326,9.7267,117.1455]
[1672558111224,40.0,9.7325,9.7267,117.1455]
[1672558111655,68.98838847,9.7324,9.7267,117.1455]
[1672558111869,40.0,9.7322,9.7267,117.1455]
[1672558113852,117.15,9.7322,9.7267,117.1455]
[1672558115033,40.0,9.7322,9.7267,117.1455]
[1672558116497,40.0,9.732,9.7267,117.1455]
[1672558116701,40.0,9.7318,9.7267,117.1455]
[1672558116911,77.15,9.7317,9.7267,117.1455]
[1672558117130,40.0,9.7316,9.7267,117.1455]
[1672558117338,40.0,9.7314,9.7267,117.1455]
[1672558117543,77.16,9.7313,9.7267,117.1455]
[1672558117749,40.0,9.7312,9.7267,117.1455]
[1672558118498,40.0,9.7312,9.7249,49.0226]
[1672558119432,77.6024843,9.7311,9.7249,49.0226]
[1672558119651,40.0,9.7309,9.7249,49.0226]
[1672558119848,40.0,9.7307,9.7249,49.0226]
[1672558120063,77.16,9.7306,9.7249,49.0226]
[1672558120259,40.0,9.7305,9.7249,49.0226]
[1672558121220,68.98838847,9.7304,9.7249,49.0226]
[1672558121429,40.0,9.7302,9.7281,0.0037958]
[1672558121641,9.27,9.7279,9.7136,189.3843]
[1672558121852,13.49928949,9.7237,9.7137,189.3843]
[1672558122076,117.22,9.7236,9.7138,118.0191]
[1672558122280,40.0,9.7235,9.7139,122.73232923]
[1672558122503,77.22,9.7234,9.7139,102.73232923]
[1672558122706,40.0,9.7233,9.7139,102.73232923]
[1672558123021,40.0,9.7231,9.7139,102.73232923]
[1672558123228,77.22,9.723,9.7139,0.00322923]
[1672558123438,60.0,9.7229,9.7049,68.4579]
[1672558123649,60.0,9.7229,9.7049,52.9579]
[1672558123650,77.22,9.7228,9.7049,52.9579]
[1672558123845,40.0,9.7226,9.7049,52.9579]
[1672558124055,97.23,9.7225,9.7049,45.1941]
[1672558124266,40.0,9.7224,9.705,40.0]
[1672558124476,77.23,9.7223,9.705,40.0]
[1672558124691,77.23,9.7224,9.7052,307.9]
[1672558124896,40.0,9.7254,9.7055,40.0]
[1672558125112,13.49928949,9.7222,9.7057,307.9]
[1672558125326,40.0,9.7252,9.706,40.0]
[1672558125539,40.0,9.725,9.7063,40.0]
[1672558125742,40.0,9.725,9.7065,307.9]
[1672558125743,77.21,9.7249,9.7065,307.9]
[1672558125958,40.0,9.7248,9.7067,307.9]
[1672558126168,40.0,9.7246,9.707,40.0]
[1672558126485,40.0,9.7246,9.7073,40.0]
[1672558126486,40.0,9.7244,9.7073,40.0]
[1672558126698,40.0,9.7242,9.7076,40.0]
[1672558127012,77.21,9.7241,9.7079,40.0]
[1672558127220,40.0,9.7239,9.7082,40.0]
[1672558127433,40.0,9.7239,9.7084,307.9]
[1672558127434,77.22,9.7238,9.7084,307.9]
[1672558127628,77.22,9.7238,9.7086,307.9]
[1672558127839,13.49928949,9.7237,9.7089,40.0]
[1672558128048,77.22,9.7236,9.7091,307.9]
[1672558128267,77.22,9.7236,9.7089,40.0]
[1672558128268,77.22,9.7236,9.7093,307.9]
[1672558128486,77.22,9.7236,9.7092,118.10087931]
[1672558128487,77.22,9.7236,9.7096,40.0]
[1672558128682,13.49928949,9.7235,9.7098,307.9]
[1672558128887,77.22,9.7234,9.71,347.9]
[1672558129106,77.22,9.7234,9.7102,347.9]
[1672558129438,77.22,9.7234,9.7105,40.0]
[1672558129742,20.0,9.724,9.7108,40.0]
[1672558129958,20.0,9.7246,9.711,307.9]
[1672558130145,40.0,9.7274,9.7109,233.7113]
[1672558130146,20.0,9.7255,9.7113,40.0]
[1672558130356,20.0,9.7255,9.7116,40.0]
[1672558130576,20.0,9.7255,9.7118,307.9]
[1672558130791,20.0,9.7255,9.712,307.9]
[1672558130997,20.0,9.7255,9.7123,40.0]
[1672558131210,20.0,9.7255,9.7125,307.9]
[1672558131425,111.844,9.7271,9.7127,307.9]
[1672558131619,111.844,9.7271,9.7126,114.31]
[1672558131620,111.844,9.7271,9.7131,307.9]
[1672558131823,20.0,9.7448,9.7143,307.9]
[1672558131824,71.1376,9.7407,9.7143,307.9]
[1672558132048,117.13,9.735,9.7145,923.3]
[1672558132255,117.13,9.735,9.7147,923.3]
[1672558132464,40.0,9.7349,9.715,40.0]
[1672558132679,77.13,9.7348,9.7152,923.3]
[1672558132890,40.0,9.7347,9.7155,40.0]
[1672558133089,77.13,9.7346,9.7157,307.9]
[1672558133308,77.13,9.7346,9.7159,307.9]
[1672558133642,77.13,9.7346,9.7162,655.4]
[1672558133643,40.0,9.7345,9.7162,655.4]
[1672558133835,40.0,9.7343,9.7166,40.0]
[1672558134050,77.13,9.7342,9.7168,307.9]
[1672558134273,40.0,9.7341,9.717,347.9]
[1672558134466,40.0,9.7339,9.7173,40.0]
[1672558134678,77.14,9.7338,9.7175,307.9]
[1672558134889,77.14,9.7338,9.7178,40.0]
[1672558134890,40.0,9.7337,9.7178,40.0]
[1672558135216,40.0,9.7335,9.7181,40.0]
[1672558135427,77.14,9.7334,9.7184,40.0]
[1672558135633,40.0,9.7333,9.7186,307.9]
[1672558135834,77.14,9.7332,9.7189,40.0]
[1672558136044,40.0,9.7331,9.7192,40.0]
[1672558136258,40.0,9.7331,9.7194,307.9]
[1672558136465,40.0,9.7331,9.7196,307.9]
[1672558136668,40.0,9.7331,9.7199,40.0]
[1672558136884,40.0,9.7331,9.7202,40.0]
[1672558137099,77.14,9.734,9.7204,307.9]
[1672558137327,77.14,9.734,9.7203,77.24]
[1672558137328,77.13,9.7342,9.7206,307.9]
[1672558137528,20.0,9.7341,9.7208,307.9]
[1672558137842,20.0,9.7341,9.7211,40.0]
[1672558138033,20.0,9.7341,9.7214,40.0]
[1672558138246,40.0,9.7399,9.7216,307.9]
[1672558138247,13.49928949,9.7355,9.7216,307.9]
[1672558138476,97.12,9.7354,9.7219,40.0]
[1672558138687,97.12,9.7354,9.7222,40.0]
[1672558138898,97.12,9.7354,9.7224,307.9]
[1672558139091,97.12,9.7354,9.7227,40.0]
[1672558139298,110.61928949,9.7354,9.723,40.0]
[1672558139516,110.61928949,9.7354,9.7232,307.9]
[1672558139842,97.12,9.7354,9.7235,40.0]
[1672558140045,20.0,9.7354,9.7237,307.9]
[1672558140373,97.12,9.7358,9.7239,307.9]
[1672558140686,97.12,9.7358,9.7242,40.0]
[1672558140898,97.12,9.7358,9.7244,307.9]
[1672558141095,97.12,9.7358,9.7246,307.9]
[1672558141311,97.12,9.7358,9.7248,307.9]
[1672558141512,97.12,9.7358,9.7251,40.0]
[1672558141722,97.12,9.7358,9.7252,307.9]
[1672558141939,97.12,9.7358,9.7253,40.0]
[1672558142148,20.0,9.7358,9.7255,307.9]
[1672558142358,20.0,9.7366,9.7258,40.0]
[1672558142568,77.12,9.7365,9.7258,40.0]
[1672558142886,20.0,9.7364,9.7258,40.0]
[1672558143095,77.12,9.7363,9.7258,40.0]
[1672558143310,20.0,9.7362,9.7258,40.0]
[1672558143506,77.12,9.7361,9.7258,40.0]
[1672558143719,20.0,9.736,9.7261,40.0]
[1672558143924,20.0,9.7362,9.7261,40.0]
[1672558144356,20.0,9.7362,9.7264,40.0]
[1672558144572,20.0,9.7363,9.7264,40.0]
[1672558144773,40.0,9.7362,9.7264,40.0]
[1672558144977,20.0,9.7361,9.7264,40.0]
[1672558145413,20.0,9.7363,9.7264,40.0]
[1672558145826,40.0,9.7362,9.7264,39.5]
[1672558146043,20.0,9.7361,9.7264,39.5]
[1672558146254,20.0,9.7361,9.7263,347.9]
[1672558146255,20.0,9.7361,9.7263,307.9]
[1672558146462,110.61928949,9.7362,9.7265,40.0]
[1672558146673,13.49928949,9.7361,9.7265,40.0]
[1672558146873,97.12,9.736,9.7265,40.0]
[1672558147089,20.0,9.736,9.7265,40.0]
[1672558148477,40.0,9.7358,9.7263,40.0]
[1672558148687,97.12,9.7357,9.7262,307.9]
[1672558148896,97.12,9.7357,9.7258,40.0]
[1672558148897,40.0,9.7356,9.7263,347.9]
[1672558149110,40.0,9.7354,9.7263,347.9]
[1672558149333,40.0,9.7352,9.7263,347.9]
[1672558149529,97.13,9.7351,9.7263,347.9]
[1672558149740,20.0,9.7351,9.7263,347.9]
[1672558149950,20.0,9.7352,9.7263,40.0]
[1672558150361,40.0,9.7354,9.7263,40.0]
[1672558150570,97.13,9.7353,9.7263,40.0]
[1672558150797,77.13,9.7353,9.7263,40.0]
[1672558151006,20.0,9.7352,9.7263,40.0]
[1672558151215,97.13,9.7352,9.7263,40.0]
[1672558151430,20.0,9.7352,9.7263,40.0]
[1672558151849,97.12,9.7363,9.7263,40.0]
[1672558153443,20.0,9.7363,9.7266,40.0]
[1672558153628,20.0,9.7366,9.7266,40.0]
[1672558153961,20.0,9.7367,9.7266,40.0]
[1672558155615,20.0,9.7367,9.7265,307.9]
[1672558155616,40.0,9.7366,9.7265,307.9]
[1672558155827,97.12,9.7365,9.7261,40.0]
[1672558156154,40.0,9.7364,9.7261,39.5]
[1672558156358,97.12,9.7363,9.7261,39.5]
[1672558156987,20.0,9.7363,9.7261,39.5]
[1672558157189,20.0,9.7366,9.7261,39.5]
[1672558157402,77.12,9.7365,9.7261,39.5]
[1672558157628,20.0,9.7364,9.7261,39.5]
[1672558157934,77.12,9.7363,9.7261,39.5]
[1672558158255,20.0,9.7362,9.7261,39.5]
[1672558158781,20.0,9.7362,9.7264,40.0]
[1672558158977,20.0,9.7363,9.7264,40.0]
[1672558159181,20.0,9.7363,9.7263,307.9]
[1672558159396,20.0,9.7363,9.7264,40.0]